[Event "US Masters"]
[Site "Charlotte USA"]
[Date "2023.11.27"]
[Round "9.10"]
[White "Kaufman, Raymond"]
[Black "Belenkaya, Dina"]
[Result "0-1"]
[ECO "B18"]
[WhiteElo "2146"]
[BlackElo "2250"]
[PlyCount "142"]
[GameId "2129404702797189"]
[EventDate "2023.11.24"]
[EventType "swiss"]
[EventRounds "9"]
[EventCountry "USA"]
[SourceTitle "10 Days #742"]
[Source "ChessMix"]
[SourceDate "2023.12.01"]
[SourceVersion "1"]
[SourceVersionDate "2023.12.01"]
[SourceQuality "1"]
[TimeControl "5400+30"]

1. e4 {[%emt 0:07:37]} c6 {[%emt 0:00:36]} 2. d4 {[%emt 0:01:25]} d5 {[%emt 0:00:06]} 3. Nd2 {[%emt 0:00:51]} dxe4 {[%emt 0:00:20]} 4. Nxe4 {[%emt 0:00:13]} Bf5 {[%emt 0:00:58]} 5. Nc5 {[%emt 0:02:04]} b6 {[%emt 0:08:06]} 6. Nb3 {[%emt 0:00:54]} e6 {[%emt 0:00:35]} 7. Bd3 {[%emt 0:09:24]} Bxd3 {[%emt 0:04:10]} 8. Qxd3 {[%emt 0:02:26]} Nf6 {[%emt 0:00:06]} 9. Nf3 {[%emt 0:01:29]} Be7 {[%emt 0:00:26]} 10. O-O {[%emt 0:01:46]} O-O {[%emt 0:00:16]} 11. Ne5 {[%emt 0:00:25]} a5 {[%emt 0:01:18]} 12. a4 {[%emt 0:01:09]} Nd5 {[%emt 0:00:44]} 13. Qg3 {[%emt 0:06:36]} Bf6 {[%emt 0:02:45]} 14. Nd2 {[%emt 0:03:22]} c5 {[%emt 0:06:12]} 15. dxc5 {[%emt 0:05:11]} Bxe5 {[%emt 0:09:22]} 16. Qxe5 {[%emt 0:03:20]} bxc5 {[%emt 0:00:41]} 17. c3 {[%emt 0:05:35]} Nd7 {[%emt 0:02:16]} 18. Qg3 {[%emt 0:07:19]} Qb8 {[%emt 0:02:18]} 19. Nc4 {[%emt 0:03:16]} Qxg3 {[%emt 0:02:31]} 20. hxg3 {[%emt 0:00:26]} N7b6 {[%emt 0:03:55]} 21. Nxb6 {[%emt 0:04:38]} Nxb6 {[%emt 0:02:43]} 22. Be3 {[%emt 0:02:39]} Rfc8 {[%emt 0:01:29]} 23. b3 {[%emt 0:10:17]} Nd5 {[%emt 0:00:36]} 24. Bd2 {[%emt 0:00:33]} c4 {[%emt 0:01:53]} 25. Rfb1 {[%emt 0:00:09]} cxb3 {[%emt 0:01:05]} 26. Rxb3 {[%emt 0:00:09]} Rc4 {[%emt 0:00:36]} 27. Kf1 {[%emt 0:02:31]} h5 {[%emt 0:02:44]} 28. Ke2 {[%emt 0:00:37]} Rd8 {[%emt 0:04:27]} 29. f3 {[%emt 0:04:50]} g6 {[%emt 0:09:19]} 30. Ra2 {[%emt 0:00:27]} Ne7 {[%emt 0:03:40]} 31. Bg5 {[%emt 0:01:36]} Rd7 {[%emt 0:02:30]} 32. Bf6 {[%emt 0:02:33]} Kh7 {[%emt 0:05:41]} 33. Rb8 {[%emt 0:01:23]} Ng8 {[%emt 0:02:40]} 34. Bd4 {[%emt 0:00:39]} f6 {[%emt 0:03:08]} 35. f4 {[%emt 0:01:03]} e5 {[%emt 0:00:26]} 36. fxe5 {[%emt 0:01:21]} fxe5 {[%emt 0:00:01]} 37. Be3 {[%emt 0:02:31]} Nf6 {[%emt 0:01:10]} 38. Ra8 {[%emt 0:00:59]} Ne4 {[%emt 0:01:03]} 39. Bd2 {[%emt 0:02:19]} Nxg3+ {[%emt 0:04:38]} 40. Ke1 {[%emt 0:01:52]} Rf7 {[%emt 0:03:50]} 41. Kd1 {[%emt 0:00:07]} Rc5 {[%emt 0:02:03]} 42. Rb2 {[%emt 0:00:20]} Ne4 {[%emt 0:01:05]} 43. Rb5 {[%emt 0:01:44]} Nxc3+ {[%emt 0:04:12]} 44. Bxc3 {[%emt 0:00:11]} Rxc3 {[%emt 0:00:03]} 45. Rxe5 {[%emt 0:00:13]} Ra3 {[%emt 0:01:16]} 46. Raxa5 {[%emt 0:00:42]} Rf2 {[%emt 0:00:18]} 47. Ke1 {[%emt 0:00:47]} Rxg2 {[%emt 0:00:20]} 48. Kf1 {[%emt 0:00:18]} Rg4 {[%emt 0:01:48]} 49. Ra7+ {[%emt 0:00:14]} Kh6 {[%emt 0:00:13]} 50. a5 {[%emt 0:00:07]} Rga4 {[%emt 0:01:37]} 51. Ra8 {[%emt 0:00:52]} Ra2 {[%emt 0:00:13]} 52. Rd5 {[%emt 0:00:38]} Rf4+ {[%emt 0:00:40]} 53. Kg1 {[%emt 0:00:10]} Rb4 {[%emt 0:00:09]} 54. Rd1 {[%emt 0:00:11]} Rba4 {[%emt 0:00:46]} 55. Rd5 {[%emt 0:00:06]} h4 {[%emt 0:00:24]} 56. a6 {[%emt 0:01:02]} Ra1+ {[%emt 0:00:21]} 57. Kh2 {[%emt 0:01:25]} R4a2+ {[%emt 0:00:37]} 58. Kh3 {[%emt 0:00:26]} Rh1+ {[%emt 0:00:29]} 59. Kg4 {[%emt 0:00:05]} Ra4+ {[%emt 0:00:20]} 60. Kf3 {[%emt 0:00:12]} Rh3+ {[%emt 0:00:09]} 61. Kg2 {[%emt 0:00:25]} Rg3+ {[%emt 0:00:11]} 62. Kh2 {[%emt 0:00:45]} Ra2+ {[%emt 0:00:11]} 63. Kh1 {[%emt 0:00:04]} Rh3+ {[%emt 0:00:23]} 64. Kg1 {[%emt 0:00:05]} Rg3+ {[%emt 0:00:08]} 65. Kh1 {[%emt 0:00:05]} Rh3+ {[%emt 0:01:46]} 66. Kg1 {[%emt 0:00:37]} Rb3 {[%emt 0:00:05]} 67. Rd1 {[%emt 0:00:07]} Kg5 {[%emt 0:01:45]} 68. a7 {[%emt 0:01:12]} Rg3+ {[%emt 0:00:45]} 69. Kh1 {[%emt 0:00:09]} Kg4 {[%emt 0:00:19]} 70. Rd4+ {[%emt 0:04:17]} Kg5 {[%emt 0:01:34]} 71. Rh8 {[%emt 0:00:30]} Kf5 {[%emt 0:00:30]} 0-1